Cogmind - Beta 15 @@@ ROGUE MODE // 2025.07.01 @ 11:34:42 Player: Fangrelle Result: Smashed by cave-in Performance ------------- Evolutions (0) 0 Regions Visited (1) 200 Robots Destroyed (18) 90 Value Destroyed (396) 396 Prototype IDs (0) 0 Alien Tech Used (0) 0 Bonus (0) 0 TOTAL SCORE: 686 Bonus ------- None Cogmind --------- Core Integrity 0/250 Matter 220/300 Energy 100/100 System Corruption 10% Temperature Cool (47) Movement Walking (260) Ox2 Location -10/Materials Parts ------- > --- POWER (1) -------- (None) > --- PROPULSION (2) --- Aluminum Leg Aluminum Leg > --- UTILITY (2) ------ High-capacity Storage Unit Visual Processing Unit > --- WEAPON (2) ------- Assault Rifle > --- INVENTORY (20) --- Wheel Wheel High-capacity Storage Unit Structural Scanner Machine Analyzer Signal Interpreter Seismic Detector Seismic Detector Propulsion Shielding Propulsion Shielding Assault Rifle Assault Rifle Light Cannon Welding Torch Peak State ------------ > --- POWER ------------ Light Nuclear Core > --- PROPULSION ------- Light Treads Light Treads > --- UTILITY ---------- High-capacity Storage Unit Visual Processing Unit > --- WEAPON ----------- Assault Rifle Assault Rifle > --- INVENTORY -------- Ion Engine Aluminum Leg Aluminum Leg Wheel Wheel High-capacity Storage Unit Machine Analyzer Signal Interpreter Seismic Detector Seismic Detector Propulsion Shielding Propulsion Shielding Assault Rifle Assault Rifle Assault Rifle Welding Torch [Rating: 11] Favorites ----------- Power Ion Engine Engine Ion Engine Power Core Light Nuclear Core Propulsion Light Treads Treads Light Treads Leg Aluminum Leg Wheel Wheel Utility High-capacity Storage Unit Device Tractor Beam Storage High-capacity Storage Unit Processor Visual Processing Unit Weapon Assault Rifle Ballistic Gun Assault Rifle Special Weapon Mining Laser Build | -11 -10 ------- Run | Yrd Mat Slots Evolved . | . . Power . | . . Propulsion . | . . Utility . | . . Weapon . | . . Parts Attached 18 | . 18 Power 2 | . 2 Engine 1 | . 1 Core 1 | . 1 Reactor . | . . Propulsion 5 | . 5 Treads 2 | . 2 Leg 2 | . 2 Wheel 1 | . 1 Hover . | . . Flight . | . . Utility 6 | . 6 Device 2 | . 2 Storage 3 | . 3 Processor 1 | . 1 Hackware . | . . Protection . | . . Artifact . | . . Weapon 5 | . 5 Energy Gun . | . . Energy Cannon . | . . Ballistic Gun 4 | . 4 Ballistic Cannon . | . . Launcher . | . . Special Weapon 1 | . 1 Impact Weapon . | . . Slashing Weapon . | . . Piercing Weapon . | . . Special Melee Weapon . | . . Unidentified Prototypes . | . . Parts Lost 9 | . 9 Power 3 | . 3 Propulsion 2 | . 2 Utility 1 | . 1 Weapon 3 | . 3 Highest Loss Streak 4 | . 4 To Critical Strikes . | . . Average Backups 14 | . 14 Power 1 | . 1 Propulsion 3 | . 3 Utility 6 | . 6 Weapon 2 | . 2 Tool/Special . | . . Unused Backups 15 | . 15 Power 1 | . 1 Propulsion 1 | . 1 Utility 8 | . 8 Weapon 4 | . 4 Tool/Special 1 | . 1 Average Slot Usage (%) 94 | . 94 Engine 8 | . 8 Core 5 | . 5 Treads 19 | . 19 Leg 4 | . 4 Device 5 | . 5 Storage 14 | . 14 Processor 6 | . 6 Ballistic Gun 27 | . 27 Peak Build Rating 11 | . 11 Average Rating 8 | . 8 On Entrance 6 | 6 6 Naked Turns . | . . Heaviest Build 50 | 12 50 Greatest Support 40 | 20 40 Greatest Overweight (x) 4 | . 4 Average Overweight (x) 1 | . 1 Largest Inventory Capacity 20 | . 20 Average Capacity 18 | . 18 Most Carried 18 | . 18 Average Carried 14 | . 14 Final Capacity 20 | 8 20 Final Carried 14 | 6 14 Class Distribution -------------------- 100% | Mutant Dominant Class ---------------- Mutant | -10/Materials Resources | -11 -10 ----------- Run | Yrd Mat Matter Collected 691 | 180 511 Remotely 232 | . 232 Salvage Created 574 | . 574 Parts 34 | . 34 Haulers Intercepted . | . . Recyclers Shooed . | . . Parts Field Recycled . | . . Retrieved Matter . | . . Parts Self-Destructed . | . . Prevented . | . . Kills | -11 -10 ------- Run | Yrd Mat Combat Hostiles Destroyed 11 | . 11 Guns 11 | . 11 Classes Destroyed 6 | . 6 Worker 2 | . 2 Builder 1 | . 1 Mechanic 1 | . 1 Watcher 3 | . 3 Swarmer 3 | . 3 Grunt 8 | . 8 Best Kill Streak 3 | . 3 Combat Bots Only 3 | . 3 Max Kills in Single Turn 1 | . 1 Gunslinging . | . . Exploded . | . . Melee . | . . Uniques/NPCs Destroyed . | . . Combat | -11 -10 -------- Run | Yrd Mat Hostile Shots Fired 99 | . 99 Missed 13 | . 13 Hits 86 | . 86 Projectile 86 | . 86 Critical Strikes 2 | . 2 Damage Taken 1270 | . 1270 Core 300 | . 300 Absorbed by Shields . | . . Core Remaining (%) 100 | 100 . Volleys Fired 77 | . 77 Largest 2 | . 2 Hottest 100 | . 100 Shots Fired 145 | . 145 Gun 139 | . 139 Cannon . | . . Launcher . | . . Special 6 | . 6 Kinetic 139 | . 139 Thermal 6 | . 6 Explosive . | . . Electromagnetic . | . . Robot Hit Streak 12 | . 12 Robot Miss Streak 3 | . 3 Penetration Max . | . . Secondary Targets 3 | . 3 Max Gunslinging Chain 1 | . 1 Shots Hit Robots 79 | . 79 Core Hits 30 | . 30 Critical Kills . | . . Critical Parts Destroyed . | . . Critical Strikes . | . . Melee Attacks . | . . Impact . | . . Slashing . | . . Piercing . | . . Sneak Attacks . | . . Combat Hostiles . | . . Follow-up Attacks . | . . Damage Inflicted 973 | . 973 Guns 973 | . 973 Cannons . | . . Explosions . | . . Melee . | . . Ramming . | . . Kinetic 973 | . 973 Thermal . | . . Explosive . | . . Electromagnetic . | . . Impact . | . . Slashing . | . . Piercing . | . . Highest Corruption 1 | . 1 Average Corruption 1 | . 1 Corruption Purged . | . . Corruption Blocked . | . . Effects 7 | . 7 Message Errors 2 | . 2 Matter Fused 1 | . 1 Energy Discharges 3 | . 3 Alerts 1 | . 1 Overload Shots . | . . Overflow Damage . | . . Projectiles . | . . Explosions . | . . Melee . | . . Knockbacks . | . . Impact . | . . Kinetic . | . . Secondary . | . . Self-Inflicted Damage . | . . Shots . | . . Rammed . | . . Targets Rammed . | . . Kicked . | . . Crushed . | . . Highest Temperature 100 | . 100 Average Temperature 19 | . 19 Received Heat Transfer 531 | . 531 Siege Activations . | . . Martial Activations . | . . Shielding Activations . | . . Robots Disrupted . | . . Combat Hostiles . | . . Robots Corrupted . | . . Combat Hostiles . | . . Parts Fried . | . . Impact Corruptions . | . . Robots Melted . | . . Combat Hostiles . | . . Parts Melted . | . . Heat Transferred . | . . Parts Sabotaged . | . . Parts Stolen . | . . Parts Stripped . | . . Power Chain Reactions . | . . Alert | -11 -10 ------- Run | Yrd Mat Maximum Alert Level . | . . Low Security (%) 100 | . 100 Level 1 . | . . Level 2 . | . . Level 3 . | . . Level 4 . | . . Level 5 . | . . High Security . | . . Max Security . | . . Peak Influence 142 | . 142 Initial . | . . Average 28 | . 28 Influence Increases 419 | . 419 Destroy 0b10 Robot/C 220 | . 220 Destroy 0b10 Robot/NC 35 | . 35 Destroy Leader 56 | . 56 Successful Hack 29 | . 29 Select Force Hacks 30 | . 30 Destroy Structure 4 | . 4 Partial Spotted 15 | . 15 Lose Combat Pursuer 30 | . 30 Influence Decreases 419 | . 419 Time Decay 380 | . 380 Lost Part 39 | . 39 Squads Dispatched 2 | . 2 Investigation 2 | . 2 Extermination . | . . Reinforcement . | . . Assault . | . . Garrison . | . . Intercept . | . . Searches Triggered . | . . Construction Impeded . | . . Haulers Reinforced . | . . Active Scanning Responses . | . . Cargo Convoy Interrupts . | . . Stealth | -11 -10 --------- Run | Yrd Mat Distress Signals 1 | . 1 Communications Jammed . | . . Distress Signals . | . . Times Spotted 20 | . 20 Peak Tracking Total 3 | . 3 Tactical Retreats 1 | . 1 Traps | -11 -10 ------- Run | Yrd Mat Traps Triggered 2 | . 2 Indirectly . | . . Trap Hack Attempts . | . . Triggered . | . . Disarmed . | . . Reprogrammed . | . . Reused . | . . Traps Extracted . | . . Installed . | . . Triggered . | . . Machines | -11 -10 ---------- Run | Yrd Mat Machines Disabled . | . . Max in Single Turn . | . . Machines Repaired . | . . Machines Dismantled . | . . Machines Sabotaged . | . . Overloaded Fab Kills . | . . Hacking | -11 -10 --------- Run | Yrd Mat Machines Accessed 5 | . 5 Terminals 4 | . 4 Fabricators . | . . Repair Stations . | . . Recycling Units 1 | . 1 Scanalyzers . | . . Garrison Access . | . . Total Hacks 19 | . 19 Successful 14 | . 14 Failed 5 | . 5 Catastrophic 1 | . 1 Database Lockouts . | . . Manual 19 | . 19 Terminals 16 | . 16 Fabricators . | . . Repair Stations . | . . Recycling Units 3 | . 3 Scanalyzers . | . . Garrison Access . | . . Terminal Hacks . | . . Fabricator Hacks . | . . Repair Station Hacks . | . . Recycling Unit Hacks . | . . Scanalyzer . | . . Garrison Access Hacks . | . . Unauthorized Hacks 14 | . 14 Terminals 12 | . 12 Track 2 | . 2 Assimilate 3 | . 3 Botnet 4 | . 4 Operators 1 | . 1 Skim 2 | . 2 Fabricators . | . . Repair Stations . | . . Recycling Units 2 | . 2 Recyclers 1 | . 1 Tunnel 1 | . 1 Scanalyzers . | . . Garrison Access . | . . Data Cores Recovered . | . . Used . | . . Hacking Detections 5 | . 5 Full Trace Events 1 | . 1 Feedback Events . | . . Feedback Blocked . | . . Robot Schematics Acquired . | . . Robots Built . | . . Authchips . | . . Time . | . . Total Robot Build Rating . | . . Part Schematics Acquired . | . . Parts Built . | . . Authchips . | . . Time . | . . Total Part Build Rating . | . . Parts Repaired . | . . Time . | . . Parts Recycled . | . . Recycled Matter . | . . Retrieved Matter . | . . Retrieved Components . | . . Parts Scanalyzed . | . . Part Schematics Acquired . | . . Parts Damaged . | . . Bothacking | -11 -10 ------------ Run | Yrd Mat Used RIF Installer . | . . Robots Hacked . | . . Non-combat . | . . Combat . | . . Robot Hacks Applied . | . . Relay Couplers Released . | . . Fabnet Peak Effective % . | . . Robots Rewired . | . . Allies Hacked . | . . Hacks Repelled . | . . Allies | -11 -10 -------- Run | Yrd Mat Total Allies . | . . Largest Group . | . . Highest-Rated Group . | . . Highest-Rated Ally . | . . Total Orders . | . . Ally Attacks . | . . Total Damage . | . . Kills . | . . Allies Corrupted . | . . Allies Melted . | . . Intel | -11 -10 ------- Run | Yrd Mat Active Infowar (turns) 954 | . 954 Optics 850 | . 850 Seismic 104 | . 104 Robot Analysis Total . | . . Derelict Logs Recovered . | . . Drone Launches . | . . Drone Recoveries . | . . Exploration | -11 -10 ------------- Run | Yrd Mat Turns Passed 1701 | . 1701 Spaces Moved 594 | 1 593 Core . | . . Treads 486 | . 486 Legs 101 | 1 100 Wheels 7 | . 7 Hover . | . . Flight . | . . Fastest Speed 120 | 120 120 Average Speed 239 | 120 239 Slowest Speed 320 | 120 320 Overloaded Moves . | . . Propulsion Burnouts . | . . Robots Hopped . | . . Potential Cave-ins . | . . Cave-ins Triggered 1 | . 1 Exploration Rate (%) 36 | 1 72 Regions Visited 1 Branch Regions . Pre-discovered Areas 1 | . 1 Known Exits Taken . | . . Unknown Exits Taken 1 | 1 . Scrap Searched . | . . Spaces Dug 1 | . 1 Terrain Destroyed 5 | . 5 Melee . | . . Projectile 5 | . 5 AOE . | . . Terrain Rammed . | . . Walls Destroyed . | . . Machines Disabled . | . . Actions | -11 -10 --------- Run | Yrd Mat Total 717 | . 717 Wait 4 | . 4 Move 593 | . 593 Hop . | . . Pick Up 16 | . 16 Fast Attach 2 | . 2 Attach 9 | . 9 Detach 3 | . 3 Swap 8 | . 8 Drop 5 | . 5 Fire 77 | . 77 Melee . | . . Ram . | . . Kick . | . . Crush . | . . Escape Stasis . | . . Rewire . | . . Trap . | . . Miscellaneous . | . . Route ------- -11/Scrapyard -10/Materials (discovered 3 exits: [*Mat x2] / [*Min]) History --------- Turn | Location | Event 1 | -11/Scrapyard | Discovered new exit (range 0) 1 | -11/Scrapyard | Entered Materials 266 | -10/Materials | Discovered new exit (range 11) 308 | -10/Materials | Build established: Mutant 640 | -10/Materials | Discovered new exit (range 8) 1261 | -10/Materials | Discovered new exit (range 13) 1401 | -10/Materials | Core integrity fell below 50% 1422 | -10/Materials | Lost 4 parts (1p1n2w) 1703 | -10/Materials | Crushed by falling debris 1703 | -10/Materials | Smashed by cave-in Last Messages --------------- 01522_ Acquired Structural Scanner. 01572_ Acquired Lgt. Cannon. 01667_ Connecting with Terminal... >>Trojan(Botnet) Trojan loaded successfully. Testing... Terminal linked with 3 systems. Awaiting botnet instructions. >>Trojan(Assimilate) Trojan loaded successfully. Testing... System interface override in place. 01672_ System corrupted: Energy discharge (-57). 01673_ Acquired Mining Laser. 01703_ The unstable cave ceiling collapses. 01703_ Crushed by falling debris. 01703_ Ion Engine destroyed. 01703_ System corrupted by crushing effect (+4). 01703_ Mining Laser destroyed. 01703_ System corrupted by crushing effect (+5). Map ----- +----------------------------------------------------+ | ????????????????????? " ## | | ???????????????????? ?? | | ???????????????????? ??? | | ???????????????????? " ???? | | ???????????????????? """ ?? ?? | | ??????????????????????""" ? ?? | | ???????????????????????"" ?? | | ???????????????????????" ?? | | ???????????????????????"" ## | | ????????????????????????? | | ?????????????????????????? | | ??????????????????????????? | | ???????????????????????????? | | ????????????????????????????? | | ?????????????????????????????? | | ??????????????????????????????# | | ??????????????????????????????# | | ???????????????????? ????????# | | ???????????????????? "???????# | | ???????????????????? "??? #?# | | ???????????????????#o "? #?# | | ???????????????????# """ #?# | | ???????###?????????# " #?### | | ???????# ##????????# #?# | | ???????# #????????# #?# | | ????####@;#####????# " #?# | | ????# T #????# """ #?# " | | ????# ###### """ #?# " | | ????# # """ #?# " | | ????# u "" ##### | | ????# """ """ # """ # "" | | ????# """ """ # "" # "" | | ????# """ """ # """ # "" | | ????# # " # | | ????########### # | | ??????????????# # | | ??????????????# ####+ | | ???????# | | ???????# | | ???????########################## | | ????????????????????????????????? | | ????????????????????????????????? | | ????????????????????????????????? | | | | | | | | | | | | | | | +----------------------------------------------------+ Best States ------------- Heat Dissipation 25 Energy Generation 14 Energy Capacity 250 Matter Stores 300 Matter Capacity 300 Sight Range 18 Terrain Scan Density 10 Evasion (%) 55 Recoil Reduction 2 Item Schematics ----------------- None Robot Schematics ------------------ None Fabricated ------------ Nothing Repaired ---------- Nothing Alien Tech Used ----------------- None Achievements -------------- None Challenges ------------ None Game ------ Seed ThermalBlanketWell Manual? 0 Play Time 00:11:17 Cumulative 158.2 hours Start 2025.07.01 @ 11:24:00 End 2025.07.01 @ 11:34:42 Sessions 1 Manual Loads 0 Difficulty Rogue Special Mode None Game No. 303 Rogue 303 Adventurer 0 Explorer 0 Win Type - Total 0 Types 0/0/0/0/0/0/0/0/0/0 Lore% 44 Gallery% 39 Achievement% 36 Wizard Run 0 Options --------- Layout 0 ASCII 0 Keyboard 0 Movement Mouse Keybinds 0 Fullscreen 1 Font 24/Smallcaps Map View 91x25 Zoom Use 92% Tactical HUD 1 Map Filters NONE Filters NONE Steam 1 RUN: 8c51323d-803f-4de3-b0cc-ada9bde8e1f4